[Event "Early-Titled-Tuesday-Blitz-March-12-2024"]
[Site "Chess.com"]
[Date "2024.03.12"]
[Round "4"]
[White "IwkooO"]
[Black "Nitzan_Steinberg"]
[Result "0-1"]
[WhiteElo "2684"]
[BlackElo "2903"]
[TimeControl "180+1"]
[EndTime "8:40:10 PDT"]
[Termination "Nitzan_Steinberg won on time"]

1. e4 {[%clk 0:02:49.3]} 1... e5 {[%clk 0:02:59.1]} 2. Nf3 {[%clk 0:02:49.4]}
2... Nc6 {[%clk 0:02:59.8]} 3. Bb5 {[%clk 0:02:49.3]} 3... Nf6 {[%clk
0:03:00.5]} 4. d3 {[%clk 0:02:48.7]} 4... d6 {[%clk 0:03:00.3]} 5. O-O {[%clk
0:02:47.5]} 5... g6 {[%clk 0:03:00.4]} 6. Nbd2 {[%clk 0:02:42.9]} 6... Bg7
{[%clk 0:02:57.8]} 7. Re1 {[%clk 0:02:43.3]} 7... O-O {[%clk 0:02:57.8]} 8. c3
{[%clk 0:02:41.6]} 8... Bd7 {[%clk 0:02:46.5]} 9. Nf1 {[%clk 0:02:40.5]} 9...
Nh5 {[%clk 0:02:38.6]} 10. Ng3 {[%clk 0:02:37.7]} 10... Nxg3 {[%clk 0:02:34.4]}
11. hxg3 {[%clk 0:02:35.9]} 11... h6 {[%clk 0:02:34.4]} 12. d4 {[%clk
0:02:35.2]} 12... Nxd4 {[%clk 0:02:29.1]} 13. cxd4 {[%clk 0:02:36.1]} 13... Bxb5
{[%clk 0:02:29]} 14. dxe5 {[%clk 0:02:29.7]} 14... dxe5 {[%clk 0:02:29.1]} 15.
Qb3 {[%clk 0:02:22.7]} 15... Bc6 {[%clk 0:02:28.5]} 16. Bd2 {[%clk 0:02:22.7]}
16... a5 {[%clk 0:02:17.6]} 17. Bc3 {[%clk 0:02:20.9]} 17... Qe7 {[%clk
0:02:17.7]} 18. Rad1 {[%clk 0:02:18.3]} 18... Rfd8 {[%clk 0:02:17.4]} 19. Qc4
{[%clk 0:02:12.4]} 19... Rxd1 {[%clk 0:01:55.9]} 20. Rxd1 {[%clk 0:02:13.3]}
20... Qe8 {[%clk 0:01:55]} 21. b3 {[%clk 0:02:08.8]} 21... Kh7 {[%clk
0:01:46.8]} 22. Qc5 {[%clk 0:02:02.1]} 22... f6 {[%clk 0:01:47.1]} 23. Qc4
{[%clk 0:01:47.7]} 23... Qg8 {[%clk 0:01:47.2]} 24. Qc5 {[%clk 0:01:40.1]} 24...
Bf8 {[%clk 0:01:44.2]} 25. Qe3 {[%clk 0:01:39.9]} 25... Qe6 {[%clk 0:01:43.1]}
26. Nd2 {[%clk 0:01:25.6]} 26... a4 {[%clk 0:01:41.1]} 27. Nc4 {[%clk
0:01:24.9]} 27... b6 {[%clk 0:01:40.5]} 28. Kh2 {[%clk 0:01:18.9]} 28... Bc5
{[%clk 0:01:33.5]} 29. Qe2 {[%clk 0:01:18.3]} 29... Bb5 {[%clk 0:01:28.2]} 30.
f3 {[%clk 0:01:13.1]} 30... Kg7 {[%clk 0:01:24.3]} 31. Bd2 {[%clk 0:01:11.4]}
31... g5 {[%clk 0:01:21.7]} 32. Rc1 {[%clk 0:01:09.1]} 32... Rd8 {[%clk
0:01:21.1]} 33. Be3 {[%clk 0:01:09.2]} 33... Bd4 {[%clk 0:01:18.7]} 34. g4
{[%clk 0:00:58.7]} 34... c5 {[%clk 0:01:16.7]} 35. Bd2 {[%clk 0:00:54.9]} 35...
Ra8 {[%clk 0:01:13.6]} 36. Qd3 {[%clk 0:00:52.2]} 36... Rh8 {[%clk 0:01:11.5]}
37. bxa4 {[%clk 0:00:46.5]} 37... Bxa4 {[%clk 0:01:09.3]} 38. Ne3 {[%clk
0:00:45.8]} 38... h5 {[%clk 0:01:04.6]} 39. Nf5+ {[%clk 0:00:45.9]} 39... Kg6
{[%clk 0:01:04.9]} 40. gxh5+ {[%clk 0:00:34.6]} 40... Rxh5+ {[%clk 0:01:04.8]}
41. Kg3 {[%clk 0:00:35.2]} 41... Rh8 {[%clk 0:01:05.5]} 42. Be3 {[%clk
0:00:35.3]} 42... Bd7 {[%clk 0:00:56.1]} 43. Bxd4 {[%clk 0:00:34.6]} 43... exd4
{[%clk 0:00:55.2]} 44. Kf2 {[%clk 0:00:31.6]} 44... Qe5 {[%clk 0:00:53.7]} 45.
Ng3 {[%clk 0:00:27.9]} 45... b5 {[%clk 0:00:52.7]} 46. Ne2 {[%clk 0:00:24.4]}
46... Ra8 {[%clk 0:00:51.9]} 47. Rc2 {[%clk 0:00:24.3]} 47... Be6 {[%clk
0:00:51.4]} 48. Qxb5 {[%clk 0:00:23.5]} 48... c4 {[%clk 0:00:49.6]} 49. Qb7
{[%clk 0:00:17.4]} 49... Rc8 {[%clk 0:00:46.5]} 50. Rc1 {[%clk 0:00:09.1]} 50...
c3 {[%clk 0:00:42.2]} 51. Qa6 {[%clk 0:00:07]} 51... Rd8 {[%clk 0:00:33.4]} 52.
Qd3 {[%clk 0:00:06.5]} 52... Qc5 {[%clk 0:00:26.1]} 53. Kg3 {[%clk 0:00:03.4]}
53... Bc4 {[%clk 0:00:23.8]} 54. Rxc3 {[%clk 0:00:01.6]} 54... Bxd3 {[%clk
0:00:24]} 55. Rc4 {[%clk 0:00:01.7]} 55... Bxc4 {[%clk 0:00:24.1]} 0-1

[Event "Early-Titled-Tuesday-Blitz-March-12-2024"]
[Site "Chess.com"]
[Date "2024.03.12"]
[Round "4"]
[White "Dyadya81"]
[Black "Jospem"]
[Result "0-1"]
[WhiteElo "2912"]
[BlackElo "3123"]
[TimeControl "180+1"]
[EndTime "8:40:11 PDT"]
[Termination "Jospem won on time"]

1. e4 {[%clk 0:03:00.9]} 1... e5 {[%clk 0:02:57.2]} 2. Nf3 {[%clk 0:02:59.9]}
2... Nc6 {[%clk 0:02:57.9]} 3. d4 {[%clk 0:03:00.2]} 3... exd4 {[%clk
0:02:57.6]} 4. Nxd4 {[%clk 0:03:01.1]} 4... Qf6 {[%clk 0:02:54]} 5. Nxc6 {[%clk
0:03:01.1]} 5... Bc5 {[%clk 0:02:53.1]} 6. Qf3 {[%clk 0:03:00.4]} 6... bxc6
{[%clk 0:02:52.5]} 7. Nd2 {[%clk 0:03:00.1]} 7... Rb8 {[%clk 0:02:39.1]} 8. Nb3
{[%clk 0:03:00.1]} 8... Be7 {[%clk 0:02:34.9]} 9. Bc4 {[%clk 0:02:39.4]} 9... d6
{[%clk 0:02:30.8]} 10. Bd2 {[%clk 0:02:35.2]} 10... Qxf3 {[%clk 0:02:28.9]} 11.
gxf3 {[%clk 0:02:35.3]} 11... Bf6 {[%clk 0:02:27.6]} 12. O-O-O {[%clk
0:02:33.3]} 12... Be6 {[%clk 0:02:27.4]} 13. Bxe6 {[%clk 0:02:21.4]} 13... fxe6
{[%clk 0:02:28.3]} 14. Be3 {[%clk 0:02:22.1]} 14... Ne7 {[%clk 0:02:24.7]} 15.
f4 {[%clk 0:02:11.9]} 15... O-O {[%clk 0:01:53.6]} 16. c3 {[%clk 0:02:11.6]}
16... a6 {[%clk 0:01:46.6]} 17. Rhg1 {[%clk 0:01:57.9]} 17... e5 {[%clk
0:01:40.4]} 18. f5 {[%clk 0:01:48.5]} 18... Kf7 {[%clk 0:01:39.6]} 19. f4 {[%clk
0:01:46.9]} 19... exf4 {[%clk 0:01:32.8]} 20. Bxf4 {[%clk 0:01:47.8]} 20... g6
{[%clk 0:01:33.3]} 21. fxg6+ {[%clk 0:01:37.3]} 21... Nxg6 {[%clk 0:01:29]} 22.
Bh6 {[%clk 0:01:37.4]} 22... Rfe8 {[%clk 0:01:18]} 23. Rdf1 {[%clk 0:01:37.4]}
23... Ke6 {[%clk 0:01:17.5]} 24. Nd4+ {[%clk 0:01:20]} 24... Bxd4 {[%clk
0:01:15.6]} 25. cxd4 {[%clk 0:01:20.9]} 25... Rb5 {[%clk 0:01:08.1]} 26. Rg5
{[%clk 0:01:12.7]} 26... Rb4 {[%clk 0:01:05.5]} 27. d5+ {[%clk 0:01:07.4]} 27...
Kd7 {[%clk 0:01:01.7]} 28. Rf7+ {[%clk 0:01:00.6]} 28... Re7 {[%clk 0:01:01.9]}
29. Rxe7+ {[%clk 0:01:01]} 29... Kxe7 {[%clk 0:00:58]} 30. dxc6 {[%clk
0:00:58.2]} 30... Rxe4 {[%clk 0:00:58.2]} 31. b3 {[%clk 0:00:48.3]} 31... Re5
{[%clk 0:00:45.2]} 32. Kd2 {[%clk 0:00:34.7]} 32... Ke6 {[%clk 0:00:44.3]} 33.
Kc3 {[%clk 0:00:16.6]} 33... Kd5 {[%clk 0:00:42.4]} 34. Rg2 {[%clk 0:00:11.9]}
34... Kxc6 {[%clk 0:00:42.2]} 35. a4 {[%clk 0:00:11.6]} 35... Rh5 {[%clk
0:00:41.7]} 36. Be3 {[%clk 0:00:10.8]} 36... Rh3 {[%clk 0:00:41.9]} 37. Kd2
{[%clk 0:00:10.4]} 37... Ne5 {[%clk 0:00:41.7]} 38. Bf4 {[%clk 0:00:09.9]} 38...
Rxb3 {[%clk 0:00:35.7]} 39. Bxe5 {[%clk 0:00:10.3]} 39... dxe5 {[%clk
0:00:36.6]} 40. Rg5 {[%clk 0:00:09.2]} 40... Rh3 {[%clk 0:00:28.7]} 41. Rxe5
{[%clk 0:00:08.8]} 41... Rxh2+ {[%clk 0:00:29.3]} 42. Kc3 {[%clk 0:00:09.7]}
42... Rh4 {[%clk 0:00:29.6]} 43. Re6+ {[%clk 0:00:07.5]} 43... Kb7 {[%clk
0:00:28.5]} 44. a5 {[%clk 0:00:08.1]} 44... Rh1 {[%clk 0:00:24.8]} 45. Kb4
{[%clk 0:00:07.4]} 45... h5 {[%clk 0:00:25.1]} 46. Re5 {[%clk 0:00:07.6]} 46...
h4 {[%clk 0:00:25.1]} 47. Rh5 {[%clk 0:00:08]} 47... h3 {[%clk 0:00:25.8]} 48.
Kb3 {[%clk 0:00:07.8]} 48... h2 {[%clk 0:00:26.5]} 49. Kb2 {[%clk 0:00:08.4]}
49... c5 {[%clk 0:00:27]} 50. Rh6 {[%clk 0:00:07.2]} 50... c4 {[%clk 0:00:27.1]}
51. Rb6+ {[%clk 0:00:05.7]} 51... Ka7 {[%clk 0:00:27.4]} 52. Rh6 {[%clk
0:00:06.6]} 52... c3+ {[%clk 0:00:27.6]} 53. Kc2 {[%clk 0:00:05.7]} 53... Ra1
{[%clk 0:00:28.1]} 54. Rh7+ {[%clk 0:00:06.3]} 54... Kb8 {[%clk 0:00:28.6]} 55.
Rh8+ {[%clk 0:00:06.9]} 55... Kc7 {[%clk 0:00:29.1]} 56. Rh7+ {[%clk 0:00:07.8]}
56... Kd8 {[%clk 0:00:29.6]} 57. Rxh2 {[%clk 0:00:08.3]} 57... Ra2+ {[%clk
0:00:29.5]} 58. Kxc3 {[%clk 0:00:09.2]} 58... Rxh2 {[%clk 0:00:30.3]} 0-1

[Event "Early-Titled-Tuesday-Blitz-March-12-2024"]
[Site "Chess.com"]
[Date "2024.03.12"]
[Round "4"]
[White "Flaccidmoves"]
[Black "profedechess93"]
[Result "0-1"]
[WhiteElo "2447"]
[BlackElo "2631"]
[TimeControl "180+1"]
[EndTime "8:40:11 PDT"]
[Termination "profedechess93 won on time"]

1. e4 {[%clk 0:03:00.9]} 1... e6 {[%clk 0:02:59.9]} 2. d4 {[%clk 0:02:59.6]}
2... d5 {[%clk 0:02:59.6]} 3. Nd2 {[%clk 0:03:00.2]} 3... Be7 {[%clk 0:02:59]}
4. Ngf3 {[%clk 0:02:59.1]} 4... Nf6 {[%clk 0:02:58.7]} 5. e5 {[%clk 0:02:59.5]}
5... Nfd7 {[%clk 0:02:59.4]} 6. Bd3 {[%clk 0:02:59.8]} 6... c5 {[%clk
0:03:00.2]} 7. c3 {[%clk 0:03:00.3]} 7... Nc6 {[%clk 0:03:01]} 8. O-O {[%clk
0:03:00.5]} 8... a5 {[%clk 0:03:01.7]} 9. Re1 {[%clk 0:02:34.1]} 9... cxd4
{[%clk 0:03:01]} 10. cxd4 {[%clk 0:02:34]} 10... g5 {[%clk 0:03:01.7]} 11. h3
{[%clk 0:02:23.5]} 11... h5 {[%clk 0:03:01.9]} 12. Nf1 {[%clk 0:02:12.6]} 12...
g4 {[%clk 0:03:01]} 13. hxg4 {[%clk 0:02:12.9]} 13... hxg4 {[%clk 0:03:01.9]}
14. N3h2 {[%clk 0:02:13.3]} 14... Bb4 {[%clk 0:03:02.1]} 15. Bd2 {[%clk
0:01:52]} 15... Qh4 {[%clk 0:03:01.2]} 16. Qxg4 {[%clk 0:01:39.2]} 16... Nxd4
{[%clk 0:02:49.7]} 17. Bxb4 {[%clk 0:01:34.4]} 17... axb4 {[%clk 0:02:45.9]} 18.
Rac1 {[%clk 0:01:25.6]} 18... Qxg4 {[%clk 0:02:13.9]} 19. Nxg4 {[%clk
0:01:25.3]} 19... Kd8 {[%clk 0:02:07.3]} 20. Bb1 {[%clk 0:01:21]} 20... b6
{[%clk 0:01:49.5]} 21. Rcd1 {[%clk 0:01:13.3]} 21... b3 {[%clk 0:01:32.7]} 22.
axb3 {[%clk 0:01:03.8]} 22... Nxb3 {[%clk 0:01:33.6]} 23. f4 {[%clk 0:01:04.1]}
23... Ra1 {[%clk 0:01:13.8]} 24. f5 {[%clk 0:00:58.3]} 24... Ndc5 {[%clk
0:01:13.3]} 25. Nf6 {[%clk 0:00:50.9]} 25... Rh4 {[%clk 0:00:42.1]} 26. g3
{[%clk 0:00:41.6]} 26... Rb4 {[%clk 0:00:41.2]} 27. Ne3 {[%clk 0:00:39.8]} 27...
Ra5 {[%clk 0:00:20]} 28. Nexd5 {[%clk 0:00:36.9]} 28... exd5 {[%clk 0:00:20.3]}
29. Nxd5 {[%clk 0:00:37.7]} 29... Rd4 {[%clk 0:00:20]} 30. Nxb6 {[%clk
0:00:22.2]} 30... Bb7 {[%clk 0:00:15]} 31. Rxd4+ {[%clk 0:00:20.9]} 31... Nxd4
{[%clk 0:00:15.9]} 32. Rd1 {[%clk 0:00:21.5]} 32... Nb3 {[%clk 0:00:13.1]} 33.
Nc4 {[%clk 0:00:19.7]} 33... Ra1 {[%clk 0:00:12.4]} 34. g4 {[%clk 0:00:18.2]}
34... Kc7 {[%clk 0:00:12.3]} 35. Kf2 {[%clk 0:00:13.4]} 35... Be4 {[%clk
0:00:12.2]} 36. Bxe4 {[%clk 0:00:06.6]} 36... Rxd1 {[%clk 0:00:12]} 37. Nd6
{[%clk 0:00:07.5]} 37... Nc5 {[%clk 0:00:09.5]} 38. Bg2 {[%clk 0:00:02.7]} 38...
Rd2+ {[%clk 0:00:08.7]} 39. Kg3 {[%clk 0:00:03.3]} 39... Ne2+ {[%clk 0:00:06.8]}
40. Kf3 {[%clk 0:00:02.9]} 40... Ng1+ {[%clk 0:00:06.9]} 41. Kg3 {[%clk
0:00:02.6]} 41... Rxb2 {[%clk 0:00:06.5]} 42. Nxf7 {[%clk 0:00:02.4]} 42... Ne2+
{[%clk 0:00:06.5]} 43. Kf3 {[%clk 0:00:02.2]} 43... Nd4+ {[%clk 0:00:06.7]} 44.
Kg3 {[%clk 0:00:02.6]} 44... Rb3+ {[%clk 0:00:06.6]} 45. Kh4 {[%clk 0:00:02.6]}
45... Ne2 {[%clk 0:00:06.7]} 46. e6 {[%clk 0:00:02.4]} 46... Re3 {[%clk
0:00:04.9]} 47. Ng5 {[%clk 0:00:01.5]} 47... Nf4 {[%clk 0:00:04.3]} 0-1

[Event "Early-Titled-Tuesday-Blitz-March-12-2024"]
[Site "Chess.com"]
[Date "2024.03.12"]
[Round "4"]
[White "Renatoforf"]
[Black "Matols"]
[Result "1/2-1/2"]
[WhiteElo "1562"]
[BlackElo "2354"]
[TimeControl "180+1"]
[EndTime "8:40:13 PDT"]
[Termination "Game drawn - insufficient material"]

1. e4 {[%clk 0:02:58.4]} 1... c6 {[%clk 0:02:59.8]} 2. Nf3 {[%clk 0:02:56.5]}
2... d5 {[%clk 0:03:00]} 3. exd5 {[%clk 0:02:55.2]} 3... cxd5 {[%clk 0:03:00.9]}
4. Ne5 {[%clk 0:02:55]} 4... Nc6 {[%clk 0:02:55.9]} 5. d4 {[%clk 0:02:55.1]}
5... Nf6 {[%clk 0:02:54.4]} 6. c3 {[%clk 0:02:51.4]} 6... e6 {[%clk 0:02:49.2]}
7. Bd3 {[%clk 0:02:48.5]} 7... Bd6 {[%clk 0:02:46.2]} 8. f4 {[%clk 0:02:46.8]}
8... Bd7 {[%clk 0:02:38.6]} 9. O-O {[%clk 0:02:47.1]} 9... O-O {[%clk
0:02:33.6]} 10. Nd2 {[%clk 0:02:43.4]} 10... Ne7 {[%clk 0:02:31]} 11. Qe2 {[%clk
0:02:41.3]} 11... Rc8 {[%clk 0:02:24.2]} 12. Rf3 {[%clk 0:02:39.2]} 12... Nf5
{[%clk 0:02:20.6]} 13. Rh3 {[%clk 0:02:35.2]} 13... g6 {[%clk 0:01:58.3]} 14.
Ndf3 {[%clk 0:02:29.6]} 14... h5 {[%clk 0:01:36.6]} 15. Kh1 {[%clk 0:02:24.5]}
15... Kg7 {[%clk 0:01:32.9]} 16. Bd2 {[%clk 0:02:18.8]} 16... Ng4 {[%clk
0:01:28.5]} 17. Rg1 {[%clk 0:02:08.8]} 17... a6 {[%clk 0:01:05.3]} 18. Ng5
{[%clk 0:01:46.7]} 18... Bxe5 {[%clk 0:00:54.3]} 19. fxe5 {[%clk 0:01:43.5]}
19... Bb5 {[%clk 0:00:44.9]} 20. Bxb5 {[%clk 0:01:32.5]} 20... axb5 {[%clk
0:00:45.8]} 21. a3 {[%clk 0:01:31.9]} 21... Rh8 {[%clk 0:00:36.2]} 22. Rf1
{[%clk 0:01:30.2]} 22... Qd7 {[%clk 0:00:21]} 23. Rhf3 {[%clk 0:01:21]} 23... h4
{[%clk 0:00:15.8]} 24. Kg1 {[%clk 0:01:14.1]} 24... Rh5 {[%clk 0:00:13.7]} 25.
Rh3 {[%clk 0:01:08.7]} 25... Qe7 {[%clk 0:00:10]} 26. Qxg4 {[%clk 0:01:05.6]}
26... Nh6 {[%clk 0:00:09]} 27. Qf3 {[%clk 0:00:58.5]} 27... Nf5 {[%clk
0:00:09.4]} 28. Qf2 {[%clk 0:00:54.1]} 28... Rch8 {[%clk 0:00:08.3]} 29. Nf3
{[%clk 0:00:48.6]} 29... g5 {[%clk 0:00:07.8]} 30. Nxg5 {[%clk 0:00:45.9]} 30...
Rxg5 {[%clk 0:00:08.7]} 31. Bxg5 {[%clk 0:00:44.5]} 31... Qxg5 {[%clk
0:00:09.6]} 32. Qf4 {[%clk 0:00:42.3]} 32... Qxf4 {[%clk 0:00:09.9]} 33. Rxf4
{[%clk 0:00:41.6]} 33... Rh6 {[%clk 0:00:10.6]} 34. g3 {[%clk 0:00:39.5]} 34...
Rg6 {[%clk 0:00:10]} 35. Rxf5 {[%clk 0:00:37.6]} 35... exf5 {[%clk 0:00:09.7]}
36. Rxh4 {[%clk 0:00:38.1]} 36... f6 {[%clk 0:00:09.9]} 37. exf6+ {[%clk
0:00:37.4]} 37... Kxf6 {[%clk 0:00:10.7]} 38. Kf2 {[%clk 0:00:36.4]} 38... Rg4
{[%clk 0:00:11]} 39. Rxg4 {[%clk 0:00:34.6]} 39... fxg4 {[%clk 0:00:11.9]} 40.
Ke3 {[%clk 0:00:34.3]} 40... Kf5 {[%clk 0:00:12.1]} 41. Kf2 {[%clk 0:00:32.8]}
41... Ke4 {[%clk 0:00:11.3]} 42. h4 {[%clk 0:00:32.4]} 42... gxh3 {[%clk
0:00:10.9]} 43. b3 {[%clk 0:00:28.8]} 43... b6 {[%clk 0:00:10.4]} 44. g4 {[%clk
0:00:23.8]} 44... Kf4 {[%clk 0:00:10.4]} 45. g5 {[%clk 0:00:23.3]} 45... Kxg5
{[%clk 0:00:10.4]} 46. Kg3 {[%clk 0:00:23.8]} 46... Kf5 {[%clk 0:00:09.6]} 47.
Kxh3 {[%clk 0:00:23.6]} 47... Ke4 {[%clk 0:00:10.3]} 48. Kg4 {[%clk 0:00:23.5]}
48... Kd3 {[%clk 0:00:10.8]} 49. Kf5 {[%clk 0:00:23.6]} 49... Kxc3 {[%clk
0:00:11]} 50. Ke5 {[%clk 0:00:24]} 50... Kxb3 {[%clk 0:00:11.1]} 51. Kxd5 {[%clk
0:00:24]} 51... Kxa3 {[%clk 0:00:11.4]} 52. Kc6 {[%clk 0:00:23]} 52... b4 {[%clk
0:00:11.8]} 53. d5 {[%clk 0:00:23.3]} 53... b3 {[%clk 0:00:12.3]} 54. d6 {[%clk
0:00:23.1]} 54... b2 {[%clk 0:00:13]} 55. d7 {[%clk 0:00:22.9]} 55... b1=Q
{[%clk 0:00:13.6]} 56. d8=Q {[%clk 0:00:22.3]} 56... b5 {[%clk 0:00:13.7]} 57.
Qa5+ {[%clk 0:00:20.7]} 57... Kb2 {[%clk 0:00:13.1]} 58. Qxb5+ {[%clk
0:00:20.5]} 58... Kc1 {[%clk 0:00:13.8]} 59. Qxb1+ {[%clk 0:00:20.1]} 59... Kxb1
{[%clk 0:00:14.7]} 1/2-1/2

[Event "Early-Titled-Tuesday-Blitz-March-12-2024"]
[Site "Chess.com"]
[Date "2024.03.12"]
[Round "4"]
[White "Ural_bogatyr"]
[Black "Al_Shima"]
[Result "1-0"]
[WhiteElo "2622"]
[BlackElo "2436"]
[TimeControl "180+1"]
[EndTime "8:40:14 PDT"]
[Termination "Ural_bogatyr won on time"]

1. d4 {[%clk 0:02:54.2]} 1... Nf6 {[%clk 0:02:59.7]} 2. Nc3 {[%clk 0:02:52.7]}
2... d5 {[%clk 0:02:59.6]} 3. Bf4 {[%clk 0:02:52.3]} 3... a6 {[%clk 0:03:00]} 4.
e3 {[%clk 0:02:52.1]} 4... e6 {[%clk 0:03:00.1]} 5. g4 {[%clk 0:02:49.6]} 5...
c5 {[%clk 0:03:00.6]} 6. g5 {[%clk 0:02:49]} 6... Nfd7 {[%clk 0:03:01]} 7. Nf3
{[%clk 0:02:48.6]} 7... Nc6 {[%clk 0:03:01.4]} 8. h4 {[%clk 0:02:48.1]} 8... b5
{[%clk 0:03:01.8]} 9. Bh3 {[%clk 0:02:47.8]} 9... Bb7 {[%clk 0:03:02.1]} 10. Kf1
{[%clk 0:02:47.3]} 10... Rc8 {[%clk 0:03:01.9]} 11. Ne2 {[%clk 0:02:46.7]} 11...
Be7 {[%clk 0:03:01.4]} 12. Ng3 {[%clk 0:02:42.5]} 12... Nb6 {[%clk 0:03:01.3]}
13. h5 {[%clk 0:02:38.5]} 13... cxd4 {[%clk 0:02:34.1]} 14. exd4 {[%clk
0:02:37.6]} 14... Bd6 {[%clk 0:02:34.2]} 15. Be3 {[%clk 0:02:11.9]} 15... Nc4
{[%clk 0:02:32.4]} 16. Kg2 {[%clk 0:02:06.2]} 16... Nxe3+ {[%clk 0:01:30.9]} 17.
fxe3 {[%clk 0:02:05.8]} 17... Bxg3 {[%clk 0:01:31.6]} 18. Kxg3 {[%clk
0:02:01.8]} 18... Qd6+ {[%clk 0:01:32.2]} 19. Kg2 {[%clk 0:02:00.4]} 19... h6
{[%clk 0:01:31.2]} 20. Bg4 {[%clk 0:01:46.3]} 20... Na5 {[%clk 0:01:16.6]} 21.
b3 {[%clk 0:01:35.2]} 21... Qe7 {[%clk 0:00:45.3]} 22. g6 {[%clk 0:01:18.4]}
22... f5 {[%clk 0:00:33.4]} 23. Bh3 {[%clk 0:01:18.1]} 23... Nc6 {[%clk
0:00:29.9]} 24. a4 {[%clk 0:01:09.9]} 24... O-O {[%clk 0:00:28.7]} 25. axb5
{[%clk 0:01:09.4]} 25... axb5 {[%clk 0:00:29.6]} 26. c3 {[%clk 0:00:58.7]} 26...
e5 {[%clk 0:00:28]} 27. Re1 {[%clk 0:00:51.9]} 27... e4 {[%clk 0:00:25.7]} 28.
Nd2 {[%clk 0:00:42.9]} 28... Qg5+ {[%clk 0:00:25.6]} 29. Kh2 {[%clk 0:00:40]}
29... Ra8 {[%clk 0:00:18.4]} 30. Qe2 {[%clk 0:00:37.8]} 30... f4 {[%clk
0:00:18]} 31. Rg1 {[%clk 0:00:35.6]} 31... Qe7 {[%clk 0:00:15.7]} 32. Rxa8
{[%clk 0:00:33.9]} 32... Bxa8 {[%clk 0:00:15.2]} 33. exf4 {[%clk 0:00:32]} 33...
Qd6 {[%clk 0:00:15.4]} 34. Rf1 {[%clk 0:00:21.2]} 34... Rxf4 {[%clk 0:00:14.5]}
35. Rxf4 {[%clk 0:00:22.1]} 35... Qxf4+ {[%clk 0:00:15.4]} 36. Kh1 {[%clk
0:00:22.4]} 36... b4 {[%clk 0:00:07.5]} 37. Nb1 {[%clk 0:00:20]} 37... bxc3
{[%clk 0:00:06.8]} 38. Nxc3 {[%clk 0:00:19.6]} 38... Qc1+ {[%clk 0:00:03.2]} 39.
Nd1 {[%clk 0:00:18.8]} 39... Nxd4 {[%clk 0:00:02.6]} 40. Qf1 {[%clk 0:00:18.6]}
40... Nf3 {[%clk 0:00:02.4]} 41. Bg4 {[%clk 0:00:14.2]} 41... d4 {[%clk
0:00:02]} 42. Bxf3 {[%clk 0:00:12.6]} 42... exf3 {[%clk 0:00:02.9]} 43. Kg1
{[%clk 0:00:13]} 43... Bd5 {[%clk 0:00:02.4]} 44. b4 {[%clk 0:00:11]} 44... Bc4
{[%clk 0:00:02]} 45. Qe1 {[%clk 0:00:09.8]} 45... Be2 {[%clk 0:00:02.6]} 46. Qh4
{[%clk 0:00:05.2]} 46... Qxd1+ {[%clk 0:00:03.1]} 47. Kh2 {[%clk 0:00:05.2]} 1-0

[Event "Early-Titled-Tuesday-Blitz-March-12-2024"]
[Site "Chess.com"]
[Date "2024.03.12"]
[Round "4"]
[White "eagleclaw07"]
[Black "laziestwin"]
[Result "1/2-1/2"]
[WhiteElo "2783"]
[BlackElo "2579"]
[TimeControl "180+1"]
[EndTime "8:40:17 PDT"]
[Termination "Game drawn by repetition"]

1. d4 {[%clk 0:03:00.9]} 1... d5 {[%clk 0:02:54.2]} 2. c4 {[%clk 0:03:01.8]}
2... e6 {[%clk 0:02:53.9]} 3. Nf3 {[%clk 0:03:02.7]} 3... Nf6 {[%clk 0:02:54]}
4. g3 {[%clk 0:03:03.6]} 4... Be7 {[%clk 0:02:40.2]} 5. Bg2 {[%clk 0:03:04.5]}
5... O-O {[%clk 0:02:40.3]} 6. O-O {[%clk 0:03:04.4]} 6... dxc4 {[%clk
0:02:38.3]} 7. Qc2 {[%clk 0:03:04.6]} 7... a6 {[%clk 0:02:37.3]} 8. Qxc4 {[%clk
0:03:05.3]} 8... b5 {[%clk 0:02:37.3]} 9. Qc2 {[%clk 0:03:06.2]} 9... Bb7 {[%clk
0:02:37.6]} 10. Bd2 {[%clk 0:03:07.1]} 10... Nbd7 {[%clk 0:02:32.1]} 11. Ba5
{[%clk 0:03:04.3]} 11... Rc8 {[%clk 0:02:31.7]} 12. Nbd2 {[%clk 0:03:03.1]}
12... Qe8 {[%clk 0:02:28.5]} 13. b4 {[%clk 0:03:03.4]} 13... Nb8 {[%clk
0:02:01.4]} 14. a3 {[%clk 0:02:58.8]} 14... Nc6 {[%clk 0:02:00.8]} 15. Nb3
{[%clk 0:02:59.4]} 15... Ba8 {[%clk 0:01:50.9]} 16. Rac1 {[%clk 0:02:58.9]}
16... Ne4 {[%clk 0:01:32.8]} 17. e3 {[%clk 0:02:41.6]} 17... Nd6 {[%clk
0:01:26.7]} 18. Ne5 {[%clk 0:02:40.9]} 18... Nxe5 {[%clk 0:01:23.3]} 19. dxe5
{[%clk 0:02:41.8]} 19... Nc4 {[%clk 0:01:22.2]} 20. Bxa8 {[%clk 0:02:42.7]}
20... Rxa8 {[%clk 0:01:22]} 21. Qe4 {[%clk 0:02:43.3]} 21... c5 {[%clk
0:01:20.5]} 22. bxc5 {[%clk 0:02:41.2]} 22... Bxc5 {[%clk 0:01:19.7]} 23. Rxc4
{[%clk 0:02:41.5]} 23... bxc4 {[%clk 0:01:17.3]} 24. Nxc5 {[%clk 0:02:42]} 24...
Qb5 {[%clk 0:01:17.7]} 25. Bb4 {[%clk 0:01:56.3]} 25... a5 {[%clk 0:01:13.3]}
26. Nxe6 {[%clk 0:01:53.8]} 26... axb4 {[%clk 0:01:01.2]} 27. Nxf8 {[%clk
0:01:52.8]} 27... Rxf8 {[%clk 0:00:42.9]} 28. axb4 {[%clk 0:01:53.4]} 28... Qxb4
{[%clk 0:00:43.8]} 29. e6 {[%clk 0:01:53]} 29... fxe6 {[%clk 0:00:36.9]} 30.
Qxe6+ {[%clk 0:01:53.9]} 30... Kh8 {[%clk 0:00:37]} 31. Qc6 {[%clk 0:01:48.7]}
31... c3 {[%clk 0:00:35.4]} 32. Kg2 {[%clk 0:01:48]} 32... Qb2 {[%clk
0:00:31.5]} 33. Qc5 {[%clk 0:01:47]} 33... Kg8 {[%clk 0:00:30.7]} 34. Qd5+
{[%clk 0:01:47]} 34... Kh8 {[%clk 0:00:31]} 35. Qc5 {[%clk 0:01:42.9]} 35... Kg8
{[%clk 0:00:28.9]} 36. h4 {[%clk 0:01:43.5]} 36... c2 {[%clk 0:00:19.7]} 37. e4
{[%clk 0:01:33.5]} 37... h6 {[%clk 0:00:15.3]} 38. Kh3 {[%clk 0:01:10.5]} 38...
Re8 {[%clk 0:00:14.4]} 39. Qc6 {[%clk 0:01:09]} 39... Re7 {[%clk 0:00:08.9]} 40.
Qc8+ {[%clk 0:01:08.2]} 40... Kh7 {[%clk 0:00:08.4]} 41. h5 {[%clk 0:01:01]}
41... Rf7 {[%clk 0:00:05.2]} 42. Qc4 {[%clk 0:00:54.4]} 42... Rf6 {[%clk
0:00:04.8]} 43. f4 {[%clk 0:00:49.5]} 43... Rd6 {[%clk 0:00:03.4]} 44. Qc5
{[%clk 0:00:17.3]} 44... Rd1 {[%clk 0:00:03.3]} 45. Qf5+ {[%clk 0:00:15.6]}
45... Kg8 {[%clk 0:00:03.1]} 46. Qe6+ {[%clk 0:00:13.9]} 46... Kh7 {[%clk
0:00:03]} 47. Qg6+ {[%clk 0:00:13.7]} 47... Kg8 {[%clk 0:00:03.5]} 48. Qe8+
{[%clk 0:00:13.7]} 48... Kh7 {[%clk 0:00:04.4]} 49. Rf2 {[%clk 0:00:10.4]} 49...
c1=Q {[%clk 0:00:04.2]} 50. Qg6+ {[%clk 0:00:10.1]} 50... Kh8 {[%clk 0:00:04.1]}
51. Qe8+ {[%clk 0:00:10.1]} 51... Kh7 {[%clk 0:00:04.7]} 52. Qg6+ {[%clk
0:00:06.9]} 52... Kg8 {[%clk 0:00:05.3]} 53. Qe6+ {[%clk 0:00:06.7]} 53... Kh7
{[%clk 0:00:05.9]} 54. Qg6+ {[%clk 0:00:06.2]} 1/2-1/2